Cogmind - Beta 15 @@@ ROGUE MODE // 2025.06.20 @ 21:48:52 Player: Cracklepappy Result: Self-destructed Performance ------------- Evolutions (3) 1500 Regions Visited (9) 1800 Robots Destroyed (173) 865 Value Destroyed (7071) 7071 Prototype IDs (41) 820 Alien Tech Used (0) 0 Bonus (4522) 4522 TOTAL SCORE: 16578 Bonus ------- Triggered High Security 500 High Alert Combat Kills 2044 Follower Combat Kills 278 Entered Garrisons 400 Used RIF Installer 1000 Aligned with FarCom 300 Cogmind --------- Core Integrity 645/700 Matter 300/300 Energy 170/170 System Corruption 2% Temperature Cool (0) Movement Flying (32) Location -7/Factory Parts ------- > --- POWER (1) -------- Light Neutrino Core > --- PROPULSION (4) --- Surge Thruster Surge Thruster > --- UTILITY (4) ------ Gravity Neutralizer 0b10 Alert Chip Core Analyzer Relay Coupler [NC] (14) > --- WEAPON (4) ------- Greatsword > --- INVENTORY (5) ---- PSU Rigger Firepult Remote Datajack Deploy-a-Sentry Peak State ------------ > --- POWER ------------ Reinforced Fission Core > --- PROPULSION ------- Armored Treads Armored Treads Armored Treads > --- UTILITY ---------- Improved Heat Sink High-capacity Storage Unit Advanced Weapon Cycler > --- WEAPON ----------- Enhanced Autogun Gauss Rifle 8R-AWN's Boregun 8R-AWN's Boregun > --- INVENTORY -------- Cold Fusion Reactor Light Neutrino Core Armored Treads Experimental Heat Sink High-capacity Matter Pod Gravity Neutralizer Experimental Sensor Array 0b10 Alert Chip System Purifier PSU Rigger AS-neutralizer No. 17b Firepult Gauss Rifle Gauss Rifle Light Cannon Missile Launcher Greatsword Deploy-a-Sentry [Rating: 66] Favorites ----------- Power Reinforced Fission Core Engine Ion Engine Power Core Reinforced Fission Core Propulsion Light Treads Treads Light Treads Wheel Armored Wheel Flight Unit Surge Thruster Utility High-capacity Storage Unit Device Improved Heat Sink Storage High-capacity Storage Unit Processor Core Analyzer Hackware Relay Coupler [NC] Weapon 8R-AWN's Boregun Energy Gun Heavy Particle Gun Energy Cannon Beam Cannon Ballistic Gun 8R-AWN's Boregun Ballistic Cannon Light Cannon Launcher Rocket Launcher Special Weapon Remote Datajack Slashing Weapon Greatsword Build | -11 -10 -10 -10 -9 -8 -8 -8 -8 -7 ------- Run | Yrd Mat Min Exi Min Mat Gar Mat Gar Fac Slots Evolved 6 | . . . . . 4 . . . 2 Power . | . . . . . . . . . . Propulsion 2 | . . . . . 1 . . . 1 Utility 2 | . . . . . 1 . . . 1 Weapon 2 | . . . . . 2 . . . . Parts Attached 78 | 7 8 3 13 . 13 7 7 12 8 Power 6 | 1 1 . 3 . . . . 1 . Engine 4 | 1 1 . 2 . . . . . . Core 2 | . . . 1 . . . . 1 . Reactor . | . . . . . . . . . . Propulsion 21 | 2 1 1 2 . 5 1 1 4 4 Treads 12 | 2 1 1 2 . 5 1 . . . Leg . | . . . . . . . . . . Wheel 5 | . . . . . . . 1 4 . Hover . | . . . . . . . . . . Flight 4 | . . . . . . . . . 4 Utility 16 | 2 2 1 3 . 2 . 3 . 3 Device 8 | 1 . 1 3 . 1 . 1 . 1 Storage 3 | 1 2 . . . . . . . . Processor 2 | . . . . . 1 . . . 1 Hackware 3 | . . . . . . . 2 . 1 Protection . | . . . . . . . . . . Artifact . | . . . . . . . . . . Weapon 35 | 2 4 1 5 . 6 6 3 7 1 Energy Gun 9 | 2 1 . . . . . 2 4 . Energy Cannon 1 | . 1 . . . . . . . . Ballistic Gun 13 | . . . 2 . 4 4 1 2 . Ballistic Cannon 5 | . 2 1 2 . . . . . . Launcher 1 | . . . 1 . . . . . . Special Weapon 2 | . . . . . . 1 . . 1 Impact Weapon . | . . . . . . . . . . Slashing Weapon 4 | . . . . . 2 1 . 1 . Piercing Weapon . | . . . . . . . . . . Special Melee Weapon . | . . . . . . . . . . Unidentified Prototypes 6 | . . 1 3 . 1 . . 1 . Parts Lost 13 | . . . 1 . . 1 3 5 3 Power 2 | . . . 1 . . . . 1 . Propulsion 4 | . . . . . . . . 2 2 Utility . | . . . . . . . . . . Weapon 7 | . . . . . . 1 3 2 1 Highest Loss Streak 3 | . . . 1 . . 1 1 2 3 To Critical Strikes . | . . . . . . . . . . Average Backups 16 | 4 17 19 17 18 16 15 15 15 3 Power 1 | . 1 1 1 2 2 1 1 . . Propulsion 3 | 3 5 6 4 2 1 2 4 4 . Utility 5 | . 3 4 4 9 8 7 6 5 1 Weapon 5 | 1 7 7 6 5 5 3 3 5 1 Tool/Special . | . . . . . . . . . . Unused Backups 47 | 1 13 2 12 . 9 3 . 2 5 Power 6 | . 2 . 3 . . 1 . . . Propulsion 12 | 1 6 . 3 . 1 . . . 1 Utility 14 | . 1 . 5 . 4 1 . . 3 Weapon 15 | . 4 2 1 . 4 1 . 2 1 Tool/Special . | . . . . . . . . . . Average Slot Usage (%) 98 | . 99 100 99 100 98 98 99 95 83 Engine 5 | . 14 14 11 . . . . . . Core 5 | . . . 2 14 9 9 9 9 7 Treads 25 | . 28 28 28 28 27 27 18 7 . Wheel 1 | . . . . . . . 8 15 . Device 12 | . 14 14 13 14 17 9 2 8 7 Storage 11 | . 14 14 14 14 9 9 9 9 . Processor 3 | . . . . . . 9 9 9 14 Energy Gun 2 | . 6 . . . . . 1 22 1 Ballistic Gun 18 | . . . 14 28 28 32 32 10 . Ballistic Cannon 9 | . 18 28 12 . 4 . . . . Slashing Weapon 1 | . . . . . 1 1 . 2 14 Peak Build Rating 66 | 7 9 16 47 47 66 62 51 47 56 Average Rating 38 | 5 8 9 28 47 59 55 47 45 54 On Entrance 32 | . 7 9 10 47 47 62 51 42 46 Naked Turns . | . . . . . . . . . . Heaviest Build 83 | 14 52 52 74 74 82 83 82 76 61 Greatest Support 60 | 40 40 40 40 40 60 60 60 36 36 Greatest Overweight (x) 20 | . 1 1 20 1 1 1 6 6 1 Average Overweight (x) 1 | . . 1 1 1 1 1 5 3 . Largest Inventory Capacity 20 | 8 20 20 20 20 20 20 20 20 20 Average Capacity 19 | 6 18 20 20 20 20 20 20 20 5 Most Carried 20 | 8 20 20 20 20 20 20 20 20 20 Average Carried 18 | 5 17 19 18 20 19 19 19 19 5 Final Capacity 20 | 8 20 20 20 20 20 20 20 20 5 Final Carried 20 | 8 20 20 20 20 20 20 20 20 5 Class Distribution -------------------- 51% | Mutant 40% | Gunner 4% | Commander-Gunner Dominant Class ---------------- Mutant | -10/Materials Mutant | -10/Mines Mutant | -10/Exiles Mutant | -9/Mines Gunner | -8/Materials Gunner | -8/Garrison Gunner | -8/Materials Gunner | -8/Garrison Scavenger-Sprinter | -7/Factory Resources | -11 -10 -10 -10 -9 -8 -8 -8 -8 -7 ----------- Run | Yrd Mat Min Exi Min Mat Gar Mat Gar Fac Matter Collected 6925 | 270 663 66 935 . 1601 1528 1095 577 190 Remotely . | . . . . . . . . . . Salvage Created 7680 | 118 1131 19 317 . 1884 1564 1206 994 447 Parts 399 | 9 50 5 14 . 95 101 63 39 23 Haulers Intercepted 7 | . 2 . . . 4 . . . 1 Recyclers Shooed 5 | . 3 . . . 1 . . . 1 Parts Field Recycled . | . . . . . . . . . . Retrieved Matter . | . . . . . . . . . . Parts Self-Destructed . | . . . . . . . . . . Prevented . | . . . . . . . . . . Kills | -11 -10 -10 -10 -9 -8 -8 -8 -8 -7 ------- Run | Yrd Mat Min Exi Min Mat Gar Mat Gar Fac Combat Hostiles Destroyed 127 | . 15 3 4 . 21 37 24 16 7 Melee 7 | . . . . . . . . . 7 Guns 100 | . 6 . . . 19 37 22 16 . Cannons 15 | . 9 3 1 . 2 . . . . AOE 5 | . . . 3 . . . 2 . . Classes Destroyed 21 | 2 6 1 3 . 4 3 2 . . Worker 7 | . 2 . . . 2 . 2 . 1 Builder 2 | . . . . . 2 . . . . Tunneler 4 | 2 . 1 . . . . 1 . . Hauler 7 | . 2 . . . 4 . . . 1 Recycler 10 | 1 5 . . . 3 . 1 . . Mechanic 1 | . 1 . . . . . . . . Operator 2 | . 2 . . . . . . . . Turret 1 | . . . 1 . . . . . . Watcher 9 | . 1 . . . 5 1 1 . 1 Swarmer 17 | . . 3 . . . 10 . 3 1 Cutter 2 | . . . . . . 2 . . . Grunt 70 | . 15 . . . 13 16 15 9 2 Brawler 7 | . . . . . . 5 2 . . Protector 1 | . . . . . . . 1 . . Sentry 11 | . . . . . 5 1 4 . 1 Demolisher 2 | . . . . . . . 2 . . Specialist 2 | . . . . . 2 . . . . Hunter 5 | . . . . . 1 . . 2 2 Programmer 6 | . . . . . . 3 . 2 1 Zionite 8 | . . . 8 . . . . . . Assembled 4 | . . . 4 . . . . . . Best Kill Streak 10 | 2 4 3 4 . 5 6 10 8 4 Combat Bots Only 8 | . 2 3 4 . 4 6 8 8 2 Max Kills in Single Turn 4 | 1 1 1 1 . 2 2 4 2 1 Gunslinging 1 | . . . . . 1 1 1 . . Exploded 2 | . . . 1 . . . 2 . . Melee 1 | . . . . . . . . . 1 Uniques/NPCs Destroyed 4 | . . . 4 . . . . . . EX-HEX (-10/Exiles) EX-DEC (-10/Exiles) EX-BIN (-10/Exiles) 8R-AWN (-10/Exiles) Combat | -11 -10 -10 -10 -9 -8 -8 -8 -8 -7 -------- Run | Yrd Mat Min Exi Min Mat Gar Mat Gar Fac Hostile Shots Fired 435 | . 55 12 10 . 52 83 58 89 76 Missed 138 | . 19 2 2 . 12 31 15 23 34 Hits 297 | . 36 10 8 . 40 52 43 66 42 Melee 10 | . . . 1 . . 3 6 . . Projectile 287 | . 36 10 7 . 40 49 37 66 42 AOE 8 | . . . . . . 1 7 . . Critical Strikes 7 | . . . 3 . . 1 1 2 . Part Disruptions 1 | . . . . . . . . 1 . Damage Taken 4708 | . 500 83 218 . 617 724 1053 948 565 Core 445 | . 37 18 49 . 37 25 102 122 55 Absorbed by Shields 66 | . . . . . . . . 66 . Regen/Repaired (Parts) 35 | . . . . . . . . . 35 Core Remaining (%) 68 | 100 . . . 58 . . . 48 . Volleys Fired 435 | 5 92 7 53 . 69 94 67 42 6 Largest 4 | 2 2 2 2 . 4 4 4 4 1 Hottest 220 | 90 90 60 60 . 120 120 146 220 5 Shots Fired 1169 | 10 167 14 84 . 270 274 211 133 6 Gun 969 | 10 83 . 74 . 215 257 197 133 . Cannon 158 | . 84 14 5 . 55 . . . . Launcher 5 | . . . 5 . . . . . . Special 37 | . . . . . . 17 14 . 6 Kinetic 914 | . 68 14 79 . 270 257 188 38 . Thermal 208 | 10 94 . . . . . 9 95 . Explosive 5 | . . . 5 . . . . . . Electromagnetic 5 | . 5 . . . . . . . . Robot Hit Streak 18 | 9 13 6 12 . 18 10 18 13 5 Robot Miss Streak 7 | . 7 2 5 . 4 7 6 6 1 Penetration Max 2 | . . . . . 1 2 1 . . Secondary Targets 19 | . . . . . 1 7 4 7 . Max Gunslinging Chain 1 | . . . . . 1 1 1 1 . Shots Hit Robots 645 | 9 95 8 48 . 137 118 117 88 25 Core Hits 289 | 4 46 2 19 . 55 58 56 39 10 Critical Kills 33 | . . . 5 . 18 10 . . . Critical Parts Destroyed 44 | . . . 10 . 27 5 2 . . Critical Strikes 91 | . 3 1 15 . 47 15 2 5 3 Burn 4 | . 3 . . . . . . 1 . Destroy 77 | . . . 15 . 45 15 2 . . Blast 3 | . . 1 . . 2 . . . . Sever 7 | . . . . . . . . 4 3 Melee Attacks 77 | . . . . . 9 12 . 23 33 Impact . | . . . . . . . . . . Slashing 77 | . . . . . 9 12 . 23 33 Piercing . | . . . . . . . . . . Sneak Attacks 10 | . . . . . 3 1 . . 6 Combat Hostiles 3 | . . . . . . . . . 3 Follow-up Attacks 7 | . . . . . . . . . 7 Damage Inflicted 13812 | 105 1432 149 778 . 2829 2529 2406 2225 1359 Guns 9329 | 105 716 . 481 . 2036 2419 2185 1387 . Cannons 1375 | . 671 145 36 . 523 . . . . Explosions 525 | . 43 . 261 . . . 221 . . Melee 2559 | . . . . . 252 110 . 838 1359 Ramming 24 | . 2 4 . . 18 . . . . Kinetic 8624 | . 585 145 517 . 2559 2419 2085 314 . Thermal 2059 | 105 781 . . . . . 100 1073 . Explosive 482 | . . . 261 . . . 221 . . Electromagnetic 64 | . 64 . . . . . . . . Impact . | . . . . . . . . . . Slashing 2559 | . . . . . 252 110 . 838 1359 Piercing . | . . . . . . . . . . Highest Corruption 2 | . . . . . . 1 1 2 2 Average Corruption 1 | . . . . . . 1 1 1 1 Corruption Purged . | . . . . . . . . . . Corruption Blocked . | . . . . . . . . . . Effects 26 | . . . . . . 11 4 10 1 Message Errors 4 | . . . . . . 1 1 2 . Matter Fused 4 | . . . . . . 1 1 2 . Heat Flow Errors 4 | . . . . . . 2 . 2 . Energy Discharges 3 | . . . . . . 2 . 1 . Data Loss (minor) 5 | . . . . . . . 2 2 1 Data Loss (major) 2 | . . . . . . 2 . . . Misfires 3 | . . . . . . 2 . 1 . Alerts 1 | . . . . . . 1 . . . Overload Shots . | . . . . . . . . . . Overflow Damage 207 | . 14 14 21 . 78 . . . 80 Projectiles 38 | . 14 14 . . 10 . . . . Explosions 21 | . . . 21 . . . . . . Melee 148 | . . . . . 68 . . . 80 Knockbacks 20 | . 5 2 1 . 12 . . . . Impact 1 | . . . . . 1 . . . . Kinetic 18 | . 5 2 1 . 10 . . . . Secondary 1 | . . . . . 1 . . . . Self-Inflicted Damage 77 | . 40 . 37 . . . . . . Shots 2 | . 1 . 1 . . . . . . Rammed 3 | . 1 . . . 2 . . . . Targets Rammed 5 | . 2 1 . . 2 . . . . Kicked . | . . . . . . . . . . Crushed 2 | . 1 1 . . . . . . . Highest Temperature 481 | 60 314 . 21 . 299 216 481 330 . Average Temperature 85 | 28 72 . 13 . 67 54 121 130 . Received Heat Transfer 1288 | . 249 . . . 243 225 306 232 33 Effects 4 | . 2 . . . . . 2 . . Shutdowns 1 | . . . . . . . 1 . . Energy Bleed 2 | . 1 . . . . . 1 . . Interference 1 | . 1 . . . . . . . . Siege Activations . | . . . . . . . . . . Martial Activations . | . . . . . . . . . . Shielding Activations . | . . . . . . . . . . Robots Disrupted . | . . . . . . . . . . Combat Hostiles . | . . . . . . . . . . Robots Corrupted . | . . . . . . . . . . Combat Hostiles . | . . . . . . . . . . Parts Fried . | . . . . . . . . . . Impact Corruptions 1 | . . . . . 1 . . . . Robots Melted . | . . . . . . . . . . Combat Hostiles . | . . . . . . . . . . Parts Melted 7 | . 5 . . . 1 . . 1 . Heat Transferred 4808 | 285 2254 . . . . . 259 2010 . Parts Sabotaged . | . . . . . . . . . . Parts Stolen . | . . . . . . . . . . Parts Stripped . | . . . . . . . . . . Power Chain Reactions 1 | . 1 . . . . . . . . Alert | -11 -10 -10 -10 -9 -8 -8 -8 -8 -7 ------- Run | Yrd Mat Min Exi Min Mat Gar Mat Gar Fac Maximum Alert Level 5 | . . . . . 1 5 5 4 3 Low Security (%) 48 | 100 100 100 . 100 65 . . . . Level 1 12 | . . . . . 34 11 . . . Level 2 3 | . . . . . . 15 . . . Level 3 7 | . . . . . . 16 . . 100 Level 4 17 | . . . . . . 16 86 100 . Level 5 10 | . . . . . . 40 6 . . High Security . | . . . . . . . 7 . . Max Security . | . . . . . . . . . . Peak Influence 2861 | 10 81 75 . . 369 2861 1642 1562 819 Initial 1394 | . . 18 . . . 237 1394 1100 819 Average 611 | 1 30 4 . . 127 1411 1314 1315 768 Influence Increases 6010 | 15 601 90 . . 939 2634 1036 512 183 Destroy 0b10 Robot/C 2572 | . 300 60 . . 420 760 600 320 112 Destroy 0b10 Robot/NC 247 | 15 65 5 . . 80 10 45 15 12 Destroy Leader 516 | . 86 10 . . 128 40 158 50 44 Allied During Kill 119 | . . . . . . 12 107 . . Successful Hack 170 | . 81 . . . 44 14 14 14 3 Select Force Hacks 30 | . 30 . . . . . . . . Disable Machine 252 | . 30 . . . 165 . 45 . 12 Anti-Garrison Action 1750 | . . . . . . 1650 . 100 . Destroy Structure 159 | . 9 . . . 42 58 37 13 . Lose Combat Pursuer 195 | . . 15 . . 60 90 30 . . Influence Decreases 5308 | 15 554 137 . . 573 139 2275 618 997 Entered New Map 2936 | . . 29 . . . 129 1467 568 743 Time Decay 1862 | 15 554 108 . . 573 . 398 . 214 Lost Part 120 | . . . . . . 10 30 50 30 Lost Ally 240 | . . . . . . . 230 . 10 Purge Threat 150 | . . . . . . . 150 . . Squads Dispatched 16 | . 4 . . . 3 . 7 . 2 Investigation 6 | . 3 . . . 1 . 1 . 1 Extermination . | . . . . . . . . . . Reinforcement 5 | . 1 . . . 2 . 1 . 1 Assault 2 | . . . . . . . 2 . . Garrison 3 | . . . . . . . 3 . . Intercept . | . . . . . . . . . . Searches Triggered . | . . . . . . . . . . Construction Impeded . | . . . . . . . . . . Haulers Reinforced . | . . . . . . . . . . Active Scanning Responses . | . . . . . . . . . . Cargo Convoy Interrupts . | . . . . . . . . . . Stealth | -11 -10 -10 -10 -9 -8 -8 -8 -8 -7 --------- Run | Yrd Mat Min Exi Min Mat Gar Mat Gar Fac Distress Signals 8 | . 1 . . . 3 . 3 . 1 Communications Jammed . | . . . . . . . . . . Distress Signals . | . . . . . . . . . . Times Spotted 204 | . 35 4 16 . 37 40 40 16 16 Peak Tracking Total 11 | . 3 3 11 . 4 6 7 5 5 Tactical Retreats 16 | . . 1 7 . 4 2 2 . . Traps | -11 -10 -10 -10 -9 -8 -8 -8 -8 -7 ------- Run | Yrd Mat Min Exi Min Mat Gar Mat Gar Fac Traps Triggered 25 | . 3 . . . 2 14 . 6 . Indirectly . | . . . . . . . . . . Trap Hack Attempts . | . . . . . . . . . . Triggered . | . . . . . . . . . . Disarmed . | . . . . . . . . . . Reprogrammed . | . . . . . . . . . . Reused . | . . . . . . . . . . Traps Extracted . | . . . . . . . . . . Installed . | . . . . . . . . . . Triggered . | . . . . . . . . . . Machines | -11 -10 -10 -10 -9 -8 -8 -8 -8 -7 ---------- Run | Yrd Mat Min Exi Min Mat Gar Mat Gar Fac Machines Disabled 37 | . 2 . 11 . 11 7 3 2 1 Max in Single Turn 2 | . 1 . 2 . 1 1 2 1 1 Garrison Relay 8 | . . . . . . 6 . 2 . Machines Repaired . | . . . . . . . . . . Machines Dismantled . | . . . . . . . . . . Machines Sabotaged . | . . . . . . . . . . Overloaded Fab Kills . | . . . . . . . . . . Hacking | -11 -10 -10 -10 -9 -8 -8 -8 -8 -7 --------- Run | Yrd Mat Min Exi Min Mat Gar Mat Gar Fac Machines Accessed 35 | . 8 1 2 . 11 3 6 2 2 Terminals 24 | . 7 . . . 7 3 4 2 1 Fabricators 1 | . . . . . . . . . 1 Repair Stations 1 | . . . . . 1 . . . . Recycling Units 1 | . 1 . . . . . . . . Scanalyzers 3 | . . . . . 2 . 1 . . Garrison Access 2 | . . . . . 1 . 1 . . Total Hacks 107 | . 31 1 2 . 39 9 17 2 6 Successful 55 | . 16 1 2 . 18 1 11 2 4 Failed 52 | . 15 . . . 21 8 6 . 2 Catastrophic 13 | . 5 . . . 1 2 4 . 1 Database Lockouts . | . . . . . . . . . . Manual 49 | . 27 . 1 . 13 . 6 . 2 Terminals 74 | . 29 . . . 23 9 9 2 2 Fabricators 4 | . . . . . . . . . 4 Repair Stations 3 | . . . . . 3 . . . . Recycling Units 2 | . 2 . . . . . . . . Scanalyzers 18 | . . . . . 12 . 6 . . Garrison Access 3 | . . . . . 1 . 2 . . Terminal Hacks 21 | . 9 1 2 . 3 1 3 2 . Record 1 | . . . 1 . . . . . . Part Schematic 5 | . 4 . . . 1 . . . . Robot Schematic 2 | . 2 . . . . . . . . Prototype ID Bank 3 | . 1 . . . 1 . 1 . . Open Door 1 | . . 1 . . . . . . . Emergency Access Points 2 | . . . . . . 1 . 1 . Unreport Threat 1 | . . . . . . . 1 . . Locate Traps 2 | . 1 . . . 1 . . . . Hauler Manifests 2 | . 1 . . . . . 1 . . Garrison Registry 1 | . . . . . . . . 1 . Proto ID Catalog 1 | . . . 1 . . . . . . Fabricator Hacks 4 | . . . . . . . . . 4 Network Status 1 | . . . . . . . . . 1 Load Schematic 2 | . . . . . . . . . 2 Build 1 | . . . . . . . . . 1 Repair Station Hacks 1 | . . . . . 1 . . . . Scan Component 1 | . . . . . 1 . . . . Recycling Unit Hacks . | . . . . . . . . . . Scanalyzer 15 | . . . . . 9 . 6 . . Insert Component 6 | . . . . . 4 . 2 . . Analyze 9 | . . . . . 5 . 4 . . Garrison Access Hacks 2 | . . . . . 1 . 1 . . Unlock Access 2 | . . . . . 1 . 1 . . Unauthorized Hacks 12 | . 7 . . . 4 . 1 . . Terminals 10 | . 6 . . . 4 . . . . Botnet 1 | . . . . . 1 . . . . Operators 1 | . . . . . 1 . . . . Skim 8 | . 6 . . . 2 . . . . Fabricators . | . . . . . . . . . . Repair Stations . | . . . . . . . . . . Recycling Units 1 | . 1 . . . . . . . . Tunnel 1 | . 1 . . . . . . . . Scanalyzers . | . . . . . . . . . . Garrison Access 1 | . . . . . . . 1 . . Reprogram 1 | . . . . . . . 1 . . Data Cores Recovered . | . . . . . . . . . . Used . | . . . . . . . . . . Hacking Detections 28 | . 7 . . . 10 3 5 1 2 Full Trace Events 5 | . . . . . 2 2 . . 1 Feedback Events 1 | . . . . . . 1 . . . Corruption 1 | . . . . . . 1 . . . Feedback Blocked . | . . . . . . . . . . Robot Schematics Acquired 2 | . 2 . . . . . . . . Robots Built . | . . . . . . . . . . Authchips . | . . . . . . . . . . Time . | . . . . . . . . . . Total Robot Build Rating . | . . . . . . . . . . Part Schematics Acquired 9 | . 3 . . . 5 . 1 . . Parts Built 2 | . . . . . . . . . 2 Authchips . | . . . . . . . . . . Time 73 | . . . . . . . . . 73 Total Part Build Rating 6 | . . . . . . . . . 6 Parts Repaired . | . . . . . . . . . . Time . | . . . . . . . . . . Parts Recycled . | . . . . . . . . . . Recycled Matter . | . . . . . . . . . . Retrieved Matter . | . . . . . . . . . . Retrieved Components . | . . . . . . . . . . Parts Scanalyzed 6 | . . . . . 4 . 2 . . Part Schematics Acquired 5 | . . . . . 4 . 1 . . Parts Damaged 2 | . . . . . 2 . . . . Bothacking | -11 -10 -10 -10 -9 -8 -8 -8 -8 -7 ------------ Run | Yrd Mat Min Exi Min Mat Gar Mat Gar Fac Used RIF Installer 2 | . . . . . . 1 . 1 . Watcher Feeds 1 | . . . . . . . . 1 . Robots Hacked 9 | . . . . . . . 6 . 3 Non-combat 9 | . . . . . . . 6 . 3 Combat . | . . . . . . . . . . Robot Hacks Applied 10 | . . . . . . . 7 . 3 find_chute 1 | . . . . . . . . . 1 mark_security 1 | . . . . . . . 1 . . link_fov 1 | . . . . . . . 1 . . formatsys_low 7 | . . . . . . . 5 . 2 Relay Couplers Released 30 | . . . . . . 24 . 6 . Machine Destruction 30 | . . . . . . 24 . 6 . Attached 3 | . . . . . . . 2 . 1 Fabnet Peak Effective % . | . . . . . . . . . . Robots Rewired 6 | . . . . . . 6 . . . Allies Hacked . | . . . . . . . . . . Hacks Repelled . | . . . . . . . . . . Allies | -11 -10 -10 -10 -9 -8 -8 -8 -8 -7 -------- Run | Yrd Mat Min Exi Min Mat Gar Mat Gar Fac Total Allies 17 | . . . . . . 8 7 . 2 Largest Group 9 | . . . . . . 8 9 1 3 Highest-Rated Group 139 | . . . . . . 116 139 12 46 Highest-Rated Ally 31 | . . . . . . 31 31 12 23 Total Orders 44 | . . . 2 . . . 3 25 14 STAY 22 | . . . . . . . 1 13 8 FOLLOW 10 | . . . . . . . 1 6 3 AID 3 | . . . . . . . 1 . 2 DROP 1 | . . . . . . . . 1 . PICKUP 4 | . . . . . . . . 3 1 COLLECT 2 | . . . . . . . . 2 . RETURN 2 | . . . 2 . . . . . . Ally Attacks 226 | . . . 159 . . 17 50 . . Total Damage 1964 | . . . 1070 . . 261 633 . . Kills 16 | . . . 4 . . 2 10 . . Allies Corrupted . | . . . . . . . . . . Allies Melted . | . . . . . . . . . . Intel | -11 -10 -10 -10 -9 -8 -8 -8 -8 -7 ------- Run | Yrd Mat Min Exi Min Mat Gar Mat Gar Fac Active Infowar (turns) 1203 | 45 421 295 442 . . . . . . Seismic 1203 | 45 421 295 442 . . . . . . Robot Analysis Total . | . . . . . . . . . . Derelict Logs Recovered 3 | . . 2 . 1 . . . . . Drone Launches 15 | . . . 15 . . . . . . Drone Recoveries 13 | . . . 13 . . . . . . Exploration | -11 -10 -10 -10 -9 -8 -8 -8 -8 -7 ------------- Run | Yrd Mat Min Exi Min Mat Gar Mat Gar Fac Turns Passed 18841 | 126 2534 1607 4536 177 3713 3669 1026 998 455 Spaces Moved 7616 | 62 1004 656 1600 74 1301 1312 414 485 708 Core 23 | 6 . . 17 . . . . . . Treads 6006 | 56 1004 656 1583 74 1301 1312 20 . . Legs . | . . . . . . . . . . Wheels 887 | . . . . . . . 394 485 8 Hover . | . . . . . . . . . . Flight 700 | . . . . . . . . . 700 Fastest Speed 26 | 50 160 240 240 240 240 250 165 105 26 Average Speed 210 | 149 212 240 248 240 244 250 183 140 26 Slowest Speed 1050 | 160 240 240 1050 240 250 250 250 180 105 Overloaded Moves . | . . . . . . . . . . Propulsion Burnouts . | . . . . . . . . . . Robots Hopped . | . . . . . . . . . . Potential Cave-ins . | . . . . . . . . . . Cave-ins Triggered . | . . . . . . . . . . Exploration Rate (%) 54 | 4 100 95 91 16 68 88 39 32 14 Regions Visited 9 Branch Regions 3 Pre-discovered Areas 4 | . 3 . 1 . . . . . . Known Exits Taken 3 | . . . 1 . 1 . 1 . . Unknown Exits Taken 4 | 1 1 1 . 1 . . . . . Scrap Searched 2 | . . 1 . 1 . . . . . Spaces Dug 19 | . . . 9 . 5 2 . 3 . Terrain Destroyed 171 | . 4 . 57 . 54 13 40 3 . Melee 10 | . . . . . 5 2 . 3 . Projectile 103 | . . . 25 . 47 11 20 . . AOE 52 | . 4 . 28 . . . 20 . . Terrain Rammed . | . . . . . . . . . . Walls Destroyed . | . . . . . . . . . . Machines Disabled . | . . . . . . . . . . Actions | -11 -10 -10 -10 -9 -8 -8 -8 -8 -7 --------- Run | Yrd Mat Min Exi Min Mat Gar Mat Gar Fac Total 9588 | 83 1247 676 2084 74 1719 1544 552 682 927 Wait 974 | . 86 . 352 1 260 30 46 53 146 Move 7607 | 61 1003 655 1599 73 1301 1310 413 484 708 Hop . | . . . . . . . . . . Pick Up 110 | 9 27 3 23 . 19 14 2 9 4 Fast Attach 53 | 7 2 2 5 . 9 13 5 7 3 Attach 47 | . 1 . 3 . 10 13 1 7 12 Detach 22 | . 3 . . . 4 8 . 3 4 Swap 59 | . 10 2 15 . 9 3 14 6 . Drop 152 | 1 21 6 34 . 27 25 4 14 20 Fire 435 | 5 92 7 53 . 69 94 67 42 6 Melee 68 | . . . . . 9 12 . 23 24 Ram . | . . . . . . . . . . Kick . | . . . . . . . . . . Crush 5 | . 2 1 . . 2 . . . . Escape Stasis 56 | . . . . . . 22 . 34 . Rewire . | . . . . . . . . . . Trap . | . . . . . . . . . . Miscellaneous . | . . . . . . . . . . Route ------- -11/Scrapyard -10/Materials (discovered 5 exits: *Mat x3 / *Min / *Sub) -10/Mines (discovered 3 exits: *Mat x2 / *Exi) -10/Exiles (discovered 2 exits: *Min x2) -9/Mines -8/Materials (discovered 3 exits: *Fac x2 / Gar) -8/Garrison (discovered 3 exits: *Mat x3) -8/Materials (discovered 2 exits: *Fac / Gar) -8/Garrison (discovered 3 exits: *Fac x3) -7/Factory History --------- Turn | Location | Event 6 | -11/Scrapyard | Discovered new exit (range 14) 127 | -11/Scrapyard | Entered Materials 301 | -10/Materials | Build established: Mutant 338 | -10/Materials | Discovered new exit (range 8) 1145 | -10/Materials | Discovered new exit (range 14) 1519 | -10/Materials | Discovered new exit (range 15) 1583 | -10/Materials | Loaded intel: 9 trap records 1713 | -10/Materials | Learned location of Storage (-7) 1761 | -10/Materials | Learned Storage security intel 1798 | -10/Materials | Learned 2 Mines zone layouts 1847 | -10/Materials | Learned location of Mines (-9) 1905 | -10/Materials | Identified exit to Materials 1905 | -10/Materials | Identified exit to Subcaves 2661 | -10/Materials | Entered Mines 2676 | -10/Mines | Met a Derelict bent on vengeance 3129 | -10/Mines | Learned Materials terminal intel 3261 | -10/Mines | Found a hidden stash of uninstalled traps 3292 | -10/Mines | Received a Rocket Launcher from a helpful Derelict 3327 | -10/Mines | Discovered exit to Materials (range 11) 3363 | -10/Mines | Deemed a non-threat by the Exiles lab entrance 3363 | -10/Mines | Discovered new exit (range 5) 3655 | -10/Mines | Found a damaged Exp. Sensor Array with a note attached 3663 | -10/Mines | Found Prototype Device 3781 | -10/Mines | Discovered exit to Materials (range 11) 3901 | -10/Mines | Learned Materials garrison access intel 3960 | -10/Mines | Found the Drone Emporium 3969 | -10/Mines | Found Prototype Device 3969 | -10/Mines | Identified Thief Drone Bay 4268 | -10/Mines | Entered Exiles 4269 | -10/Exiles | Identified exit to Mines 4333 | -10/Exiles | Met 8R-AWN 4367 | -10/Exiles | Met EX-HEX 4480 | -10/Exiles | Met EX-DEC 4525 | -10/Exiles | Learned location of Zion (-7) 4883 | -10/Exiles | Visited The Gauntlet 5232 | -10/Exiles | Met EX-BIN 5362 | -10/Exiles | Aligned with FarCom system 5364 | -10/Exiles | Given EX-Vault access code 5422 | -10/Exiles | Opened EX-Vault 5443 | -10/Exiles | Found PSU Rigger 5449 | -10/Exiles | Found 0b10 Alert Chip 5460 | -10/Exiles | Found Firepult 5513 | -10/Exiles | Warned to stay clear of 0b10 Research branches 6192 | -10/Exiles | Attacked by the Exiles 6384 | -10/Exiles | Found 8R-AWN's Boregun 6385 | -10/Exiles | Found 8R-AWN's Boregun 6964 | -10/Exiles | Allies destroyed EX-HEX 7022 | -10/Exiles | Allies destroyed EX-DEC 7037 | -10/Exiles | Found Deploy-a-Sentry 7053 | -10/Exiles | Allies destroyed EX-BIN 7130 | -10/Exiles | Found Prototype Device 7132 | -10/Exiles | Identified System Purifier 7532 | -10/Exiles | Allies destroyed 8R-AWN 7561 | -10/Exiles | Found Prototype Device 7595 | -10/Exiles | Identified AS-neutralizer No. 17b 8407 | -10/Exiles | Identified Exp. Sensor Array 8804 | -10/Exiles | Stole four prototypes: 0b10 Alert Chip, PSU Rigger, Firepult, Deploy-a-Sentry 8804 | -10/Exiles | Entered Mines 8891 | -9/Mines | Discovered new exit (range 10) 8929 | -9/Mines | Learned location of 1 exit from Materials 8981 | -9/Mines | Entered Materials 8981 | -8/Materials | Evolved 4 slots: Propulsion x1, Utility x1, Weapon x2 8982 | -8/Materials | Identified exit to Factory 8983 | -8/Materials | Loaded intel: 12 terminal locations 8984 | -8/Materials | Loaded intel: 1 garrison access location 9298 | -8/Materials | Build established: Gunner 11061 | -8/Materials | Discovered exit to Factory (range 15) 11674 | -8/Materials | Build established: Mutant 12078 | -8/Materials | Build established: Gunner 12694 | -8/Materials | Identified exit to Garrison 12694 | -8/Materials | Entered Garrison 12698 | -8/Garrison | Triggered checkpoint 12718 | -8/Garrison | Triggered checkpoint 12761 | -8/Garrison | Garrison Relay disabled 12912 | -8/Garrison | Triggered checkpoint 13190 | -8/Garrison | Discovered new exit (range 14) 13560 | -8/Garrison | Triggered checkpoint 13620 | -8/Garrison | Triggered checkpoint 13962 | -8/Garrison | Garrison Relay disabled 14059 | -8/Garrison | Triggered checkpoint 14074 | -8/Garrison | Triggered checkpoint 14325 | -8/Garrison | Discovered new exit (range 12) 14422 | -8/Garrison | Triggered checkpoint 14514 | -8/Garrison | Garrison Relay disabled 14754 | -8/Garrison | Triggered checkpoint 14848 | -8/Garrison | Triggered checkpoint 14936 | -8/Garrison | Garrison Relay disabled 15125 | -8/Garrison | Discovered new exit (range 12) 15398 | -8/Garrison | Garrison Relay disabled 15409 | -8/Garrison | Garrison Relay disabled 15670 | -8/Garrison | Rescued a captive Derelict 15672 | -8/Garrison | Rescued a captive Derelict 16114 | -8/Garrison | Installed Relay Interface Framework 16244 | -8/Garrison | Build established: Commander-Gunner 16363 | -8/Garrison | Entered Materials 16363 | -8/Materials | Accompanied by 8 allies 16763 | -8/Materials | First assault squad dispatched 16844 | -8/Materials | Lost 8 allies 16859 | -8/Materials | Destroyed 8 combat bots 16980 | -8/Materials | Discovered exit to Factory (range 5) 16996 | -8/Materials | Identified exit to Garrison 17085 | -8/Materials | Build established: Gunner 17144 | -8/Materials | Garrison activated, responded to threat 17317 | -8/Materials | High security lockdown imminent 17389 | -8/Materials | Entered Garrison 17389 | -8/Garrison | Accompanied by 1 ally 17649 | -8/Garrison | Triggered checkpoint 17683 | -8/Garrison | Garrison Relay disabled 17698 | -8/Garrison | Discovered exit to Factory (range 69) 17698 | -8/Garrison | Discovered exit to Factory (range 64) 17698 | -8/Garrison | Discovered exit to Factory (range 46) 17794 | -8/Garrison | Triggered checkpoint 17867 | -8/Garrison | Triggered checkpoint 17931 | -8/Garrison | Destroyed 8 combat bots 18090 | -8/Garrison | Triggered checkpoint 18096 | -8/Garrison | Core integrity fell below 50% 18197 | -8/Garrison | Triggered checkpoint 18257 | -8/Garrison | Garrison Relay disabled 18366 | -8/Garrison | Expanded RIF knowledge: Watcher Feeds 18387 | -8/Garrison | Entered Factory 18387 | -7/Factory | Accompanied by 1 ally 18387 | -7/Factory | Evolved 2 slots: Propulsion x1, Utility x1 18614 | -7/Factory | Fabricated Surge Thruster (x2) 18708 | -7/Factory | Build established: Scavenger-Sprinter 18842 | -7/Factory | Self-destructed Last Messages --------------- 18831_ K-01 Serf collects debris. 18831_ Greatsword follow-up attack on S-27 Virus. 18831_ K-01 Serf collects debris. 18833_ Surge Thruster destroyed. 18834_ K-01 Serf cleans the Fabricator. 18834_ K-01 Serf collects debris. 18835_ Greatsword follow-up attack on S-27 Virus. 18835_ S-27 Virus destroyed. 18835_ K-01 Serf collects debris. 18837_ >> Watcher Feeds: Feed link from W-25 Informer lost. 18837_ Slug penetrates S-27 Virus. 18837_ K-01 Serf cleans the Fabricator. 18838_ K-01 Serf collects debris. 18838_ Surge Thruster destroyed. 18838_ Greatsword follow-up attack on S-27 Virus. 18839_ K-01 Serf collects debris. 18840_ Penetrated by Slug. 18840_ K-01 Serf collects debris. 18841_ K-01 Serf cleans the Fabricator. 18842_ Greatsword destroyed. Map ----- +----------------------------------------------------+ | ## #?#######??????????# """???????????? | | ## #?# #??????????# ""R" ??????????? | | ## ### ############ "" " ?????????? | | ## % / = / ## ?######## | | ## !### # """"""" #?! ?# | | ## #?# # """"""" #? """ # | | ## ######### """""""=## """ # | | ## #??# """"""" ## """ + | | ###### #??# ## # | | #???# ^ #??# ########### ###+# | | ????# ^ """ #??# ! ## =%*!%!= #???? | | #???# """ ########+###### =!=!= #???? | | #???# """ ^ = #???? | | #???# #???? | | #???# * """ #???? | | #???# ######+######### """" ""F"" #???? | | #???# ???? ??????# """" "" "" ###+####???? | | ##???# ?? ????# """" k!k/#??????????? | | ?????# ?# #???# """" k!%!#??????????? | | ?????#??# #???# """" !!*#??????????? | | ????????# #???# """" #??????????? | | ????????# #???# """" #??????????? | | ????????# #???# #??????????? | | ????????# #???# u m = #??????????? | | ????????###########???# = #??????????? | | ??????????????????????# ^@ %*#??????????? | | ??????????????????????#k%sk ##?????????? | | ??????????????????????# sa k ???????? | | ???????????????######## w ??????? | | ??????? h ??????? | | ???????????????######### ###+###############?????? | | ???????????????????????# #???????????????????????? | | ???????????????????????# #???????????????????????? | | ???????????????????????# #???????????????????????? | | ???????????????????????# #???????????????????????? | | ???????????????????????# #???????????????????????? | | ????????????????????####+#########???????????????? | | ????????????????????# #???????????????? | | ????????????????????# * #???????????????? | | ????????????????????# """" #???????????????? | | ????????????????????# """" +???????????????? | | ????????????????????# """" #???????????????? | | ????????????????????# """" / ??????????????? | | ????????????????????# """ # ????????????? | | ????????????????????# """" """ #? ???????????? | | ????????????????????# """" ] " #?? ??????????? | | ????????????????????# """" "F"?#???????????????? | | ????????????????????# """?? """?????????????????? | | ????????????????????# ???? ???????????????????? | | ????????????????????###??????#???????????????????? | +----------------------------------------------------+ Best States ------------- Heat Dissipation 61 Energy Generation 19 Energy Capacity 310 Matter Stores 300 Matter Capacity 300 Sight Range 16 Terrain Scan Density 10 Additional Mass Support 12 Weapon Cycling 25 Evasion (%) 64 Core Analysis 6 Recoil Reduction 3 Relay Coupler Types 1 Relay Coupler Value 28 Item Schematics ----------------- Lgt. Treads | -10/Materials | Hacked Lgt. Assault Rifle | -10/Materials | Hacked Utility Shielding | -10/Materials | Hacked Lgt. Neutrino Core | -8/Materials | Scanalyzed Gravity Neutralizer | -8/Materials | Scanalyzed Cold Fusion Reactor | -8/Materials | Scanalyzed Exp. Heat Sink | -8/Materials | Scanalyzed Surge Thruster | -8/Materials | Hacked Greatsword | -8/Materials | Scanalyzed Robot Schematics ------------------ M-13 Machinist | -10/Materials | Hacked S-10 Pest | -10/Materials | Hacked Fabricated ------------ Surge Thruster | x2 | -7/Factory Repaired ---------- Nothing Alien Tech Used ----------------- None Achievements -------------- None Challenges ------------ None Game ------ Seed DeuteriumCorePlatform Manual? 0 Play Time 01:52:52 Cumulative 940.4 hours Start 2025.06.20 @ 16:23:24 End 2025.06.20 @ 21:48:52 Sessions 7 Manual Loads 0 Difficulty Rogue Special Mode None Game No. 491 Rogue 491 Adventurer 0 Explorer 0 Win Type - Total 23 Types 10/4/3/0/1/1/2/2/0/0 Lore% 85 Gallery% 86 Achievement% 83 Wizard Run 0 Options --------- Layout 0 ASCII 0 Keyboard 0 Movement Numpad Keybinds 0 Fullscreen 2 Font 24/Smallcaps Map View 76x50 Zoom Use 0% Tactical HUD 1 Map Filters NONE Filters SHIFT_HUE(315) Steam 1 RUN: ea4b7cdf-c1f8-45ab-bd79-56c25fe54228